bitfinex-derivatives/quotes_BTCF0:USTF0_20260119
["timestamp","ask_amount","ask_price","bid_price","bid_amount"]
[1768855410258,0.010734,93205.0,93200.0,0.00016092]
[1768855410459,0.010734,93208.0,93200.0,0.00016092]
[1768855410861,0.14543175,93213.0,93200.0,0.00016092]
[1768855411360,0.03539747,93212.0,93200.0,0.00016092]
[1768855411562,0.14543175,93211.0,93200.0,0.00016092]
[1768855411758,0.03539747,93210.0,93200.0,0.00016092]
[1768855412852,0.14543175,93210.0,93193.0,0.40273444]
[1768855413059,0.0966,93213.0,93193.0,0.40273444]
[1768855413060,0.010735,93200.0,93193.0,0.04484518]
[1768855413262,0.010735,93200.0,93189.0,0.00236081]
[1768855413460,0.010735,93199.0,93189.0,0.00236081]
[1768855413861,0.010735,93199.0,93189.0,0.01864668]
[1768855415265,0.14543175,93204.0,93189.0,0.01864668]
[1768855415566,0.03539747,93203.0,93189.0,0.01864668]
[1768855415766,0.010735,93196.0,93189.0,0.01864668]
[1768855416667,0.010736,93196.0,93189.0,0.01864668]
[1768855420158,0.010736,93195.0,93189.0,6.8e-07]
[1768855420356,0.010736,93195.0,93184.0,0.09896092]
[1768855420557,0.0966,93203.0,93184.0,0.09896092]
[1768855420558,0.14543175,93196.0,93184.0,0.01858875]
[1768855420862,0.03539747,93195.0,93184.0,0.01858875]
[1768855421570,0.010736,93194.0,93184.0,0.01858875]
[1768855423369,0.010735,93197.0,93184.0,0.01858875]
[1768855423959,0.010736,93195.0,93184.0,0.01858875]
[1768855428275,0.010736,93194.0,93184.0,0.01858875]
[1768855431678,0.010735,93196.0,93184.0,0.01858875]
[1768855435787,0.24740305,93199.0,93184.0,0.01858875]
[1768855437184,0.010736,93193.0,93184.0,0.01858875]
[1768855437408,0.03586624,93198.0,93184.0,0.01858875]
[1768855438388,0.010736,93195.0,93184.0,0.02932575]
[1768855438787,0.107335,93199.0,93184.0,0.09600381]
[1768855438985,0.010736,93195.0,93184.0,0.09600381]
[1768855439884,0.0966,93199.0,93184.0,0.09600381]
[1768855440282,0.010736,93193.0,93184.0,0.09600381]
[1768855440990,0.010736,93195.0,93184.0,0.09600381]
[1768855444195,0.010736,93194.0,93184.0,0.09600381]
[1768855445096,0.010736,93196.0,93184.0,0.09600381]
[1768855445496,0.0966,93199.0,93184.0,0.09600381]
[1768855445697,0.010735,93200.0,93187.0,0.11859339]
[1768855445899,0.010734,93208.0,93188.0,0.03785398]
[1768855446103,0.0966,93207.0,93194.0,0.010736]
[1768855446696,0.0966,93207.0,93188.0,0.03785398]
[1768855446997,0.010734,93206.0,93188.0,0.03785398]
[1768855447500,0.010735,93204.0,93191.0,0.010736]
[1768855448196,0.25024192,93207.0,93189.0,0.010736]
[1768855448402,0.15364192,93202.0,93189.0,0.010736]
[1768855448593,0.03586624,93202.0,93189.0,0.010736]
[1768855450797,0.03586624,93202.0,93184.0,0.01858875]
[1768855450999,0.0966,93207.0,93184.0,0.01858875]
[1768855451000,0.010736,93191.0,93184.0,0.01858875]
[1768855452393,0.03586624,93193.0,93184.0,0.01858875]
[1768855452594,0.15364192,93193.0,93184.0,0.01858875]
[1768855453401,0.010736,93190.0,93184.0,0.01858875]
[1768855453703,0.010736,93188.0,93184.0,0.01858875]
[1768855454509,0.16437792,93189.0,93177.0,0.0966]
[1768855454709,0.15364192,93185.0,93172.0,0.07704809]
[1768855455007,0.15364192,93186.0,93170.0,0.07704809]
[1768855455208,0.010737,93185.0,93170.0,0.010738]
[1768855456002,0.15364192,93186.0,93172.0,0.010738]
[1768855456608,0.15364192,93186.0,93174.0,0.010738]
[1768855458501,0.03586624,93181.0,93171.0,0.010738]
[1768855458709,0.03586624,93181.0,93170.0,0.01653807]
[1768855458710,0.15364192,93179.0,93170.0,0.01653807]
[1768855458910,0.00863247,93179.0,93169.0,0.01310031]
[1768855459096,0.010737,93186.0,93171.0,0.010738]
[1768855460006,0.010737,93184.0,93170.0,0.01709722]
[1768855460206,0.010737,93184.0,93170.0,0.010738]
[1768855460808,0.11777568,93183.0,93170.0,0.010738]
[1768855461511,0.11777568,93182.0,93170.0,0.010738]
[1768855462710,0.11777568,93182.0,93172.0,0.010738]
[1768855463202,0.11777568,93182.0,93169.0,0.01928317]
[1768855463402,0.11777568,93182.0,93172.0,0.010738]
[1768855463602,0.03586624,93183.0,93169.0,0.01928317]
[1768855464204,0.09144788,93186.0,93169.0,0.01928317]
[1768855464506,0.09144788,93182.0,93169.0,0.01928317]
[1768855465113,0.09144788,93182.0,93175.0,0.010738]
[1768855465517,0.09144788,93186.0,93175.0,0.010738]
[1768855466105,0.10218488,93184.0,93171.0,0.010738]
[1768855468010,0.010737,93186.0,93173.0,0.05973997]
[1768855468217,0.010737,93186.0,93171.0,0.03799381]
[1768855468422,0.010737,93186.0,93171.0,0.04873181]
[1768855469421,0.010737,93186.0,93173.0,0.010738]
[1768855471920,0.09144788,93188.0,93169.0,0.01928317]
[1768855472121,0.09144788,93188.0,93169.0,0.05816611]
[1768855472421,0.010737,93183.0,93170.0,0.010738]
[1768855473719,0.010737,93183.0,93169.0,0.05816611]
[1768855473920,0.010737,93183.0,93169.0,0.06890511]
[1768855474122,0.13346865,93189.0,93169.0,0.06890511]
[1768855474123,0.010737,93181.0,93169.0,0.01928317]
[1768855474424,0.10218488,93181.0,93169.0,0.01928317]
[1768855474823,0.09144788,93181.0,93169.0,0.01928317]
[1768855475216,0.09144788,93181.0,93170.0,0.010738]
[1768855476726,0.09144788,93179.0,93169.0,0.01928317]
[1768855476924,0.09144788,93179.0,93169.0,0.03002217]
[1768855479423,0.09144788,93182.0,93170.0,0.010738]
[1768855481831,0.08272148,93163.0,93142.0,0.09653216]
[1768855482027,0.08272148,93163.0,93149.0,0.01881557]
[1768855482226,0.08272148,93163.0,93151.0,0.10705093]
[1768855482831,0.00010731,93162.0,93152.0,0.10705093]
[1768855483017,0.00010731,93162.0,93151.0,0.10705093]
[1768855484121,0.00010731,93162.0,93149.0,0.07142111]
[1768855484327,0.00010731,93162.0,93150.0,0.10705093]
[1768855484328,0.01074,93161.0,93150.0,0.10705093]
[1768855484530,0.00010731,93162.0,93151.0,0.10705093]
[1768855484712,0.00010731,93162.0,93149.0,0.01881557]
[1768855484713,0.00010731,93162.0,93149.0,0.07033049]
[1768855484915,0.01084631,93162.0,93149.0,0.01881557]
[1768855485119,0.01084631,93162.0,93150.0,0.10705093]
[1768855485419,0.01084631,93162.0,93151.0,0.10705093]
[1768855485819,0.00010731,93162.0,93152.0,0.10705093]
[1768855486027,0.00010731,93162.0,93151.0,0.10705093]
[1768855486533,0.00010731,93162.0,93152.0,0.10705093]
[1768855486727,0.00010731,93162.0,93151.0,0.10705093]
[1768855487131,0.00010731,93162.0,93152.0,0.10705093]
[1768855487326,0.00010731,93162.0,93151.0,0.10705093]
[1768855487724,0.00010731,93162.0,93152.0,0.10705093]
[1768855488021,0.00010731,93162.0,93151.0,0.10705093]
[1768855488533,0.00010731,93162.0,93152.0,0.10705093]
[1768855488737,0.00010731,93162.0,93151.0,0.10705093]
[1768855489222,0.00010731,93162.0,93152.0,0.10705093]
[1768855489423,0.00010731,93162.0,93151.0,0.10705093]
[1768855489731,0.00010731,93162.0,93149.0,0.01881557]
[1768855490127,0.00010731,93162.0,93152.0,0.10705093]
[1768855490629,0.00010731,93162.0,93153.0,0.10705093]
[1768855490831,0.00010731,93162.0,93152.0,0.10705093]
[1768855491431,0.00010731,93162.0,93149.0,0.01881557]
[1768855491732,0.00010731,93162.0,93152.0,0.10705093]
[1768855492123,0.00010731,93162.0,93154.0,0.10705093]
[1768855492323,0.00010731,93162.0,93152.0,0.10705093]
[1768855492932,0.00010731,93162.0,93154.0,0.10705093]
[1768855493131,0.00010731,93162.0,93149.0,0.01881557]
[1768855493330,0.00010731,93162.0,93153.0,0.10705093]
[1768855493532,0.00010731,93162.0,93149.0,0.01881557]
[1768855493725,0.00010731,93162.0,93153.0,0.10705093]
[1768855493927,0.00010731,93162.0,93152.0,0.10705093]
[1768855494125,0.00010731,93162.0,93149.0,0.01881557]
[1768855494331,0.00010731,93162.0,93155.0,0.00300752]
[1768855494836,0.01074,93161.0,93156.0,0.10705093]
[1768855495230,0.01074,93161.0,93157.0,0.10705093]
[1768855495433,0.01074,93161.0,93149.0,0.01881557]
[1768855495434,0.01074,93161.0,93159.0,0.00300752]
[1768855496336,0.00010731,93162.0,93159.0,0.00300752]
[1768855496538,0.00010731,93162.0,93149.0,0.01881557]
[1768855496737,0.00010731,93162.0,93153.0,0.10705093]
[1768855497038,0.00010731,93162.0,93154.0,0.10705093]
[1768855497430,0.00010731,93162.0,93158.0,0.10705093]
[1768855497738,0.00010731,93162.0,93153.0,0.10705093]
[1768855497932,0.00010731,93162.0,93154.0,0.10705093]
[1768855498326,0.00010731,93162.0,93156.0,0.10705093]
[1768855498528,0.01074,93161.0,93154.0,0.10705093]
[1768855499029,0.01074,93161.0,93157.0,0.10705093]
[1768855499237,0.01074,93161.0,93159.0,0.00300804]
[1768855499536,0.00010731,93162.0,93159.0,0.00300804]
[1768855499733,0.01084631,93162.0,93159.0,0.00300804]
[1768855500129,0.01084631,93162.0,93159.0,0.11005897]
[1768855500329,0.01084631,93162.0,93160.0,0.00300804]
[1768855500639,0.01084631,93162.0,93151.0,0.010741]
[1768855500834,0.00010731,93162.0,93155.0,0.10705093]
[1768855501041,0.000161,93166.0,93155.0,0.10705093]
[1768855501334,0.000161,93166.0,93153.0,0.07589314]
[1768855501534,0.07986192,93174.0,93160.0,0.01074]
[1768855501535,0.09664,93168.0,93160.0,0.01074]
[1768855501741,0.010738,93172.0,93160.0,0.01074]
[1768855501938,0.010738,93178.0,93163.0,0.08663214]
[1768855502133,0.010738,93174.0,93164.0,0.07589314]
[1768855502338,0.010738,93171.0,93164.0,0.07589314]
[1768855502535,0.010738,93171.0,93163.0,0.04284399]
[1768855502844,0.010739,93168.0,93155.0,0.01074]
[1768855503037,0.07986192,93171.0,93159.0,0.10705093]
[1768855503238,0.07986192,93171.0,93155.0,0.10705093]
[1768855503543,0.07986192,93171.0,93157.0,0.10705093]
[1768855504041,0.07986192,93171.0,93158.0,0.10705093]
[1768855504240,0.07986192,93171.0,93157.0,0.10705093]
[1768855504539,0.010739,93169.0,93157.0,0.10705093]
[1768855504741,0.010739,93169.0,93154.0,0.01074]
[1768855505046,0.010739,93169.0,93158.0,0.10705093]
[1768855505237,0.010739,93169.0,93156.0,0.11779093]
[1768855505437,0.010739,93169.0,93159.0,0.10705093]
[1768855505941,0.010739,93169.0,93161.0,0.10705093]
[1768855506141,0.010739,93169.0,93159.0,0.10705093]
[1768855506641,0.010739,93169.0,93161.0,0.10705093]
[1768855506844,0.010739,93169.0,93160.0,0.10705093]
[1768855507344,0.010739,93169.0,93162.0,0.10705093]
[1768855507545,0.010739,93169.0,93160.0,0.10705093]
[1768855508043,0.010739,93169.0,93162.0,0.10705093]
[1768855508238,0.010739,93169.0,93160.0,0.10705093]
[1768855508745,0.010739,93169.0,93162.0,0.10705093]
[1768855508928,0.010739,93169.0,93160.0,0.10705093]
[1768855509443,0.010739,93169.0,93162.0,0.10705093]
[1768855509634,0.010739,93169.0,93160.0,0.10705093]
[1768855510144,0.010739,93168.0,93162.0,0.10705093]
[1768855510341,0.010739,93168.0,93157.0,0.10705093]
[1768855510642,0.010739,93168.0,93160.0,0.10705093]
[1768855511038,0.010739,93168.0,93163.0,0.10705093]
[1768855511341,0.010739,93168.0,93154.0,0.07589314]
[1768855511342,0.010739,93168.0,93160.0,0.10705093]
[1768855511540,0.010737,93181.0,93170.0,0.07589314]
[1768855511744,0.09664,93186.0,93175.0,0.010738]
[1768855512038,0.010737,93183.0,93173.0,0.10705093]
[1768855512240,0.010737,93183.0,93175.0,0.10705093]
[1768855512543,0.010737,93181.0,93175.0,0.10705093]
[1768855512744,0.010737,93181.0,93176.0,0.10705093]
[1768855512946,0.010738,93178.0,93170.0,0.000161]
[1768855514338,0.010737,93181.0,93170.0,0.000161]
[1768855517542,0.010737,93180.0,93170.0,0.000161]
[1768855517945,0.08222284,93184.0,93170.0,0.000161]
[1768855519044,0.17985584,93180.0,93170.0,0.000161]
[1768855519244,0.07986192,93173.0,93155.0,0.04284399]
[1768855519449,0.09059992,93173.0,93156.0,0.09664]
[1768855519743,0.010738,93173.0,93156.0,0.09664]
[1768855520149,0.04349692,93174.0,93162.0,0.010739]
[1768855520451,0.07986192,93176.0,93162.0,0.010739]
[1768855520843,0.07986192,93176.0,93160.0,0.17985584]
[1768855521051,0.05423392,93179.0,93164.0,0.010739]
[1768855521258,0.13409584,93179.0,93164.0,0.010739]
[1768855521751,0.13409584,93179.0,93160.0,0.25574898]
[1768855521944,0.13409584,93179.0,93161.0,0.07589314]
[1768855522145,0.010738,93177.0,93161.0,0.07589314]
[1768855522750,0.010738,93177.0,93160.0,0.17985584]
[1768855523450,0.010738,93177.0,93164.0,0.010739]
[1768855526656,0.13409584,93179.0,93164.0,0.010739]
[1768855527151,0.010738,93178.0,93164.0,0.010739]
[1768855527557,0.12335884,93179.0,93160.0,0.17985584]
[1768855527756,0.010738,93178.0,93165.0,0.010739]
[1768855529056,0.12335884,93179.0,93166.0,0.010739]
[1768855529958,0.010738,93178.0,93166.0,0.010739]
[1768855534462,0.010738,93178.0,93159.0,0.08590166]
[1768855535457,0.010738,93178.0,93165.0,0.010739]
[1768855537764,0.12335884,93179.0,93166.0,0.010739]
[1768855538767,0.09664,93181.0,93170.0,0.08590166]
[1768855538957,0.01309792,93184.0,93170.0,0.08590166]
[1768855539153,0.01309792,93184.0,93166.0,0.05298693]
[1768855539154,0.09664,93183.0,93166.0,0.13888859]
[1768855539358,0.09664,93183.0,93167.0,0.08590166]
[1768855540570,0.09664,93183.0,93170.0,0.010738]
[1768855540968,0.01309792,93184.0,93170.0,0.010738]
[1768855541164,0.09664,93183.0,93170.0,0.010738]
[1768855541372,0.18954955,93183.0,93170.0,0.010738]
[1768855541571,0.09290955,93182.0,93170.0,0.010738]
[1768855541872,0.09290955,93182.0,93167.0,0.010739]
[1768855542073,0.14768481,93183.0,93156.0,0.1846811]
[1768855542074,0.14395436,93179.0,93165.0,0.010739]
[1768855542874,0.010738,93177.0,93165.0,0.010739]
[1768855546985,0.09290955,93178.0,93157.0,0.14540342]
[1768855547282,0.010738,93176.0,93158.0,0.09176549]
[1768855547991,0.010738,93176.0,93162.0,0.010739]
[1768855548584,0.010738,93176.0,93163.0,0.010739]
[1768855548781,0.010738,93175.0,93160.0,0.01074]
[1768855549086,0.010738,93174.0,93161.0,0.010739]
[1768855555997,0.010738,93174.0,93162.0,0.010739]
[1768855558787,0.010738,93177.0,93158.0,0.09176549]
[1768855558988,0.13672238,93179.0,93162.0,0.010739]
[1768855559288,0.08567757,93178.0,93162.0,0.010739]
[1768855560401,0.010738,93175.0,93162.0,0.010739]
[1768855560802,0.08567757,93178.0,93160.0,0.10120794]
[1768855561001,0.08567757,93178.0,93160.0,0.01074]
[1768855561904,0.010738,93174.0,93161.0,0.010739]
[1768855562203,0.010738,93173.0,93161.0,0.010739]
[1768855566705,0.010738,93175.0,93159.0,0.0518591]
[1768855566920,0.010737,93179.0,93166.0,0.10120694]
[1768855567106,0.010738,93177.0,93166.0,0.10120694]
[1768855567410,0.010738,93177.0,93166.0,0.010739]
[1768855567712,0.010738,93176.0,93162.0,0.010739]
[1768855568413,0.14024783,93179.0,93162.0,0.010739]
[1768855568611,0.010738,93172.0,93158.0,0.01074]
[1768855568907,0.010738,93172.0,93156.0,0.26440904]
[1768855570502,0.010738,93172.0,93159.0,0.01074]
[1768855571310,0.05457026,93174.0,93159.0,0.01074]
[1768855571514,0.010738,93173.0,93159.0,0.01074]
[1768855572820,0.05457026,93157.0,93146.0,0.09637929]
[1768855573116,0.14024783,93154.0,93141.0,0.010742]
[1768855573321,0.05457026,93153.0,93137.0,0.09664]
[1768855573621,0.14024783,93153.0,93137.0,0.09664]
[1768855573798,0.010741,93150.0,93137.0,0.09664]
[1768855574003,0.15098783,93153.0,93137.0,0.1142823]
[1768855574603,0.010741,93151.0,93137.0,0.1142823]
[1768855576302,0.14024783,93153.0,93137.0,0.1250243]
[1768855579204,0.010741,93152.0,93137.0,0.1142823]
[1768855580013,0.09641857,93150.0,93137.0,0.1142823]
[1768855580213,0.08567757,93148.0,93137.0,0.1142823]
[1768855580819,0.05457026,93149.0,93137.0,0.1142823]
[1768855582209,0.000161,93158.0,93129.0,0.00236233]
[1768855582210,0.08567757,93136.0,93129.0,0.00236233]
[1768855582414,0.05457026,93133.0,93120.0,0.010744]
[1768855582618,0.14024783,93132.0,93116.0,0.010745]
[1768855583118,0.16613193,93137.0,93118.0,0.09838725]
[1768855583318,0.000161,93133.0,93118.0,0.10913125]
[1768855583523,8.474e-05,93132.0,93117.0,0.05687834]
[1768855583723,8.474e-05,93132.0,93117.0,0.06762234]
[1768855584415,8.474e-05,93132.0,93117.0,0.16600959]
[1768855586316,8.474e-05,93132.0,93112.0,0.09838725]
[1768855586507,0.010743,93131.0,93113.0,0.010745]
[1768855586711,0.010743,93131.0,93113.0,0.10913225]
[1768855587617,0.010743,93131.0,93113.0,0.01780756]
[1768855587817,0.010743,93131.0,93110.0,0.05687834]
[1768855588112,0.010743,93131.0,93114.0,0.09838725]
[1768855588313,0.010743,93131.0,93115.0,0.09838725]
[1768855588514,0.010743,93129.0,93115.0,0.09838725]
[1768855588911,0.01082774,93132.0,93117.0,0.15526559]
[1768855589111,8.474e-05,93132.0,93123.0,0.15526559]
[1768855589319,0.010742,93138.0,93123.0,0.15526559]
[1768855589512,0.010743,93135.0,93123.0,0.09838725]
[1768855589916,0.09668,93139.0,93123.0,0.09838725]
[1768855590126,0.010742,93138.0,93123.0,0.15526559]
[1768855590428,0.09668,93141.0,93128.0,0.09838725]
[1768855590617,0.010742,93140.0,93128.0,0.09838725]
[1768855591018,0.09668,93142.0,93127.0,0.05687834]
[1768855591019,0.010742,93138.0,93127.0,0.05687834]
[1768855591322,0.010742,93138.0,93124.0,0.09838725]
[1768855592026,0.010742,93138.0,93122.0,0.010744]
[1768855592229,0.010742,93136.0,93121.0,0.09838725]
[1768855593241,0.010742,93139.0,93121.0,0.09838725]
[1768855593632,0.19546398,93142.0,93122.0,0.09838725]
[1768855593836,0.010742,93138.0,93122.0,0.10913125]
[1768855594443,0.010742,93139.0,93125.0,0.10913125]
[1768855596141,0.010742,93139.0,93125.0,0.09838725]
[1768855596943,0.010742,93139.0,93126.0,0.09838725]
[1768855598745,0.010742,93137.0,93126.0,0.09838725]
[1768855606258,0.09668,93142.0,93126.0,0.09838725]
[1768855606259,0.010742,93136.0,93126.0,0.09838725]
[1768855607857,0.010742,93136.0,93124.0,0.010744]
[1768855608059,0.010742,93136.0,93124.0,0.12197967]
[1768855608957,0.010742,93138.0,93125.0,0.12197967]
[1768855609253,0.010742,93137.0,93125.0,0.12197967]
[1768855610559,0.010742,93137.0,93125.0,0.1788659]
[1768855612157,0.010742,93137.0,93126.0,0.11123567]
[1768855612555,0.010742,93139.0,93126.0,0.12197867]
[1768855612755,0.09668,93150.0,93140.0,0.11123567]
[1768855612948,0.10742,93156.0,93145.0,0.11738448]
[1768855613155,0.01074,93154.0,93147.0,0.11738448]
[1768855613352,0.01074,93153.0,93146.0,0.05571304]
[1768855613557,0.01074,93153.0,93143.0,0.11738448]
[1768855614760,0.09668,93156.0,93147.0,0.11738448]
[1768855616260,0.18003939,93160.0,93147.0,0.11738448]
[1768855616461,0.01074,93160.0,93147.0,0.11738448]
[1768855616662,0.19077939,93160.0,93147.0,0.11738448]
[1768855617558,0.01074,93160.0,93147.0,0.11738448]
[1768855617864,0.19077939,93160.0,93147.0,0.11738448]
[1768855618064,0.01074,93159.0,93147.0,0.11738448]
[1768855625369,0.01074,93157.0,93147.0,0.11738448]
[1768855627863,0.01074,93158.0,93147.0,0.11738448]
[1768855631762,0.01074,93159.0,93149.0,0.11738448]
[1768855631967,0.09668,93162.0,93149.0,0.11738448]
[1768855632162,0.02451208,93161.0,93149.0,0.11738448]
[1768855632362,0.09668,93162.0,93149.0,0.11738448]
[1768855632562,0.02451299,93161.0,93149.0,0.11738448]
[1768855632767,0.09668,93162.0,93149.0,0.11738448]
[1768855633073,0.02451298,93161.0,93148.0,0.05571304]
[1768855633277,0.09668,93162.0,93148.0,0.05571304]
[1768855633475,0.01074,93158.0,93148.0,0.05571304]
[1768855638977,0.09668,93162.0,93148.0,0.05571304]
[1768855639174,0.09668,93162.0,93146.0,0.11738448]
[1768855639175,0.02452484,93161.0,93146.0,0.11738448]
[1768855639379,0.01074,93157.0,93146.0,0.11738448]
[1768855640578,0.01074,93156.0,93146.0,0.11738448]
[1768855642978,0.00236143,93164.0,93155.0,0.10827076]
[1768855643179,0.0242632,93163.0,93152.0,0.10827076]
[1768855643381,0.00236143,93164.0,93150.0,0.341727]
[1768855643382,0.0350022,93162.0,93150.0,0.341727]
[1768855643578,0.0242632,93161.0,93150.0,0.341727]
[1768855643779,0.01074,93160.0,93150.0,0.16168761]
[1768855645274,0.01074,93160.0,93150.0,0.341727]
[1768855645481,0.00236143,93164.0,93150.0,0.341727]
[1768855645683,0.02409174,93163.0,93150.0,0.341727]
[1768855645982,0.02409174,93162.0,93150.0,0.341727]
[1768855646188,0.02409174,93161.0,93150.0,0.341727]
[1768855646379,0.01074,93161.0,93150.0,0.16168761]
[1768855648182,0.01310043,93164.0,93150.0,0.16168761]
[1768855648388,0.0240925,93163.0,93153.0,0.16168761]
[1768855648576,0.09668,93173.0,93163.0,0.10827076]
[1768855648790,0.02409371,93172.0,93163.0,0.10827076]
[1768855648987,0.09668,93173.0,93163.0,0.10827076]
[1768855649288,0.09668,93173.0,93163.0,0.010739]
[1768855649682,0.010738,93176.0,93163.0,0.010739]
[1768855649889,0.12076251,93175.0,93164.0,0.10827076]
[1768855650089,0.02408251,93174.0,93164.0,0.10827076]
[1768855650289,0.09668,93175.0,93164.0,0.10827076]
[1768855653783,0.010737,93179.0,93165.0,0.11900976]
[1768855654094,0.010738,93177.0,93166.0,0.10827076]
[1768855663994,0.09668,93178.0,93166.0,0.10827076]
[1768855665096,0.09668,93178.0,93166.0,0.11900976]
[1768855669491,0.09668,93178.0,93166.0,0.10827076]
[1768855671101,0.09668,93178.0,93166.0,0.11900976]
[1768855675406,0.010738,93177.0,93165.0,0.05341685]
[1768855675706,0.09668,93178.0,93165.0,0.06415585]
[1768855676603,0.09668,93178.0,93166.0,0.010739]
[1768855677206,0.02397395,93177.0,93167.0,0.010739]
[1768855677395,0.09668,93178.0,93167.0,0.010739]
[1768855677597,0.02397396,93177.0,93167.0,0.010739]
[1768855677797,0.09668,93178.0,93167.0,0.010739]
[1768855678107,0.02397395,93177.0,93167.0,0.010739]
[1768855678405,0.02397395,93177.0,93165.0,0.05341685]
[1768855678406,0.02397395,93176.0,93168.0,0.010739]
[1768855678606,0.09668,93178.0,93168.0,0.010739]
[1768855678811,0.02398706,93177.0,93165.0,0.06415585]
[1768855679007,0.02398706,93176.0,93165.0,0.06415585]
[1768855679207,0.09668,93178.0,93165.0,0.06415585]
[1768855679408,0.02398876,93177.0,93165.0,0.06415585]
[1768855679609,0.02398876,93176.0,93165.0,0.06415585]
[1768855679794,0.09668,93178.0,93165.0,0.06415585]
[1768855679999,0.03472675,93177.0,93165.0,0.06415585]
[1768855680207,0.02398875,93176.0,93165.0,0.06415585]
[1768855680601,0.09668,93178.0,93165.0,0.06415585]
[1768855680802,0.02398987,93177.0,93165.0,0.06415585]
[1768855681002,0.02398987,93176.0,93165.0,0.06415585]
[1768855681206,0.09668,93178.0,93165.0,0.06415585]
[1768855681409,0.09668,93178.0,93165.0,0.05341685]
[1768855681410,0.010738,93175.0,93165.0,0.05341685]
[1768855681612,0.010738,93177.0,93165.0,0.05341685]
[1768855681905,0.02399138,93176.0,93165.0,0.06415585]
[1768855682108,0.02399153,93175.0,93165.0,0.06415585]
[1768855682311,0.010738,93177.0,93165.0,0.06415585]
[1768855682506,0.02399222,93176.0,93165.0,0.06415585]
[1768855682712,0.02399222,93175.0,93165.0,0.06415585]
[1768855683012,0.010738,93177.0,93163.0,0.12704457]
[1768855683200,0.02399229,93176.0,93163.0,0.12704457]
[1768855683400,0.02399229,93175.0,93163.0,0.12704457]
[1768855683598,0.010738,93177.0,93163.0,0.12704457]
[1768855683897,0.010738,93174.0,93163.0,0.11630557]
[1768855684102,0.02399327,93176.0,93163.0,0.11630557]
[1768855684103,0.010738,93176.0,93163.0,0.11630557]
[1768855684305,0.02399347,93175.0,93163.0,0.11630557]
[1768855684504,0.010738,93176.0,93163.0,0.11630557]
[1768855684807,0.02399354,93175.0,93163.0,0.11630557]
[1768855685012,0.107418,93178.0,93165.0,0.010739]
[1768855685199,0.0239946,93177.0,93165.0,0.010739]
[1768855685403,0.0347326,93176.0,93164.0,0.010739]
[1768855685604,0.0239946,93175.0,93164.0,0.010739]
[1768855686113,0.107418,93178.0,93164.0,0.010739]
[1768855686321,0.02399512,93177.0,93164.0,0.010739]
[1768855686522,0.02399512,93176.0,93164.0,0.010739]
[1768855686706,0.107418,93178.0,93164.0,0.010739]
[1768855686904,0.02399501,93177.0,93164.0,0.010739]
[1768855687112,0.02399501,93176.0,93164.0,0.010739]
[1768855687312,0.107418,93178.0,93164.0,0.010739]
[1768855687604,0.02399527,93177.0,93164.0,0.010739]
[1768855687812,0.02399527,93176.0,93164.0,0.010739]
[1768855688013,0.107418,93178.0,93164.0,0.010739]
[1768855688212,0.02399527,93177.0,93164.0,0.010739]
[1768855688513,0.02399527,93176.0,93164.0,0.010739]
[1768855688713,0.107418,93178.0,93164.0,0.010739]
[1768855688914,0.02399564,93177.0,93164.0,0.010739]
[1768855689114,0.02399564,93176.0,93164.0,0.010739]
[1768855689315,0.107418,93178.0,93164.0,0.010739]
[1768855689615,0.02399558,93177.0,93164.0,0.010739]
[1768855689813,0.02399558,93176.0,93164.0,0.010739]
[1768855690010,0.010738,93176.0,93164.0,0.010739]
[1768855692820,0.107418,93178.0,93164.0,0.010739]
[1768855693022,0.02399554,93177.0,93164.0,0.010739]
[1768855693229,0.02399554,93176.0,93164.0,0.010739]
[1768855693420,0.107418,93178.0,93164.0,0.010739]
[1768855693610,0.02399553,93177.0,93165.0,0.010739]
[1768855693818,0.02399553,93176.0,93165.0,0.010739]
[1768855694017,0.107418,93178.0,93165.0,0.010739]
[1768855694219,0.02399549,93177.0,93165.0,0.010739]
[1768855694520,0.02399549,93176.0,93165.0,0.010739]
[1768855694720,0.107418,93178.0,93165.0,0.010739]
[1768855694921,0.02399544,93177.0,93165.0,0.010739]
[1768855695126,0.02399544,93176.0,93165.0,0.010739]
[1768855695421,0.107418,93178.0,93165.0,0.010739]
[1768855695621,0.02399542,93177.0,93165.0,0.010739]
[1768855695821,0.02399542,93176.0,93165.0,0.010739]
[1768855696017,0.107418,93178.0,93165.0,0.010739]
[1768855696217,0.02399557,93177.0,93166.0,0.010739]
[1768855696420,0.02399557,93176.0,93163.0,0.010739]
[1768855696615,0.107418,93178.0,93163.0,0.010739]
[1768855696817,0.02397669,93177.0,93163.0,0.010739]
[1768855697023,0.02397669,93176.0,93163.0,0.010739]
[1768855697224,0.107418,93178.0,93164.0,0.010739]
[1768855697416,0.02397674,93177.0,93164.0,0.010739]
[1768855697616,0.03471474,93176.0,93164.0,0.010739]
[1768855697822,0.010738,93176.0,93164.0,0.010739]
[1768855698824,0.107418,93178.0,93164.0,0.010739]
[1768855699023,0.02397673,93177.0,93164.0,0.010739]
[1768855699225,0.02397673,93176.0,93164.0,0.010739]
[1768855699426,0.107418,93178.0,93164.0,0.010739]
[1768855699619,0.02397694,93177.0,93164.0,0.010739]
[1768855699922,0.02397694,93176.0,93165.0,0.010739]
[1768855700127,0.107418,93178.0,93165.0,0.010739]
[1768855700329,0.02397709,93177.0,93165.0,0.010739]
[1768855700626,0.02397709,93176.0,93165.0,0.010739]
[1768855700826,0.107418,93178.0,93165.0,0.010739]
[1768855701026,0.02397738,93177.0,93165.0,0.010739]
[1768855701228,0.03471538,93176.0,93162.0,0.12704457]
[1768855701528,0.010738,93176.0,93162.0,0.12704457]
[1768855701730,0.010738,93176.0,93161.0,0.010739]
[1768855702027,0.010738,93176.0,93162.0,0.010739]
[1768855704626,0.010738,93174.0,93159.0,0.17240774]
[1768855704833,0.010738,93174.0,93161.0,0.010739]
[1768855705036,0.010738,93176.0,93162.0,0.010739]
[1768855705731,0.107418,93178.0,93159.0,0.17240774]
[1768855705932,0.02389732,93177.0,93159.0,0.17240774]
[1768855706232,0.02389732,93176.0,93159.0,0.17240774]
[1768855706432,0.107418,93178.0,93159.0,0.17240774]
[1768855706634,0.0238874,93177.0,93159.0,0.17240774]
[1768855706834,0.0238874,93176.0,93159.0,0.17240774]
[1768855707034,0.107418,93178.0,93159.0,0.17240774]
[1768855707235,0.02388748,93177.0,93159.0,0.17240774]
[1768855707436,0.02388748,93176.0,93163.0,0.010739]
[1768855707734,0.107418,93178.0,93163.0,0.010739]